fUSD/lending_fUSD_20250112
["ID","MTS","AMOUNT","RATE_DAILY","PERIOD"]
[348663523,1736703045198,-500.0,9.86e-05,2]
[348663524,1736703045207,-518.86,9.86e-05,2]
[348663525,1736703045217,-500.0,9.86e-05,2]
[348663526,1736703045226,-500.0,9.86e-05,2]
[348663527,1736703045236,-564.98,9.86e-05,2]
[348663528,1736703045246,-500.0,9.86e-05,2]
[348663529,1736703045255,-500.0,9.86e-05,2]
[348663530,1736703045265,-500.0,9.86e-05,2]
[348663531,1736703045275,-500.0,9.86e-05,2]
[348663532,1736703045284,-550.16,9.86e-05,2]
[348663533,1736703045293,-662.99,9.86e-05,2]
[348663534,1736703045303,-500.0,9.86e-05,2]
[348663535,1736703045312,-500.0,9.86e-05,2]
[348663536,1736703045322,-500.0,9.86e-05,2]
[348663537,1736703045333,-500.0,9.86e-05,2]
[348663538,1736703045343,-773.0,9.86e-05,2]
[348663539,1736703045352,-618.82,9.86e-05,2]
[348663540,1736703045363,-1018.4,9.86e-05,2]
[348663541,1736703045372,-500.0,9.86e-05,2]
[348663542,1736703045382,-500.0,9.86e-05,2]
[348663543,1736703045391,-500.0,9.86e-05,2]
[348663544,1736703045400,-500.0,9.86e-05,2]
[348663545,1736703045410,-520.44,9.86e-05,2]
[348663546,1736703045421,-551.87,9.86e-05,2]
[348663547,1736703045432,-500.0,9.86e-05,2]
[348663548,1736703045441,-500.0,9.86e-05,2]
[348663549,1736703045451,-500.0,9.86e-05,2]
[348663550,1736703045462,-621.66,9.86e-05,2]
[348663551,1736703045472,-500.0,9.86e-05,2]
[348663552,1736703045482,-500.0,9.86e-05,2]
[348663553,1736703045493,-741.52,9.86e-05,2]
[348663554,1736703045504,-715.09,9.86e-05,2]
[348663555,1736703045514,-695.27,9.86e-05,2]
[348663556,1736703045524,-610.33,9.86e-05,2]
[348663557,1736703045534,-503.36,9.86e-05,2]
[348663560,1736703045544,-700.77,9.86e-05,2]
[348663561,1736703045554,-500.0,9.86e-05,2]
[348663563,1736703045563,-500.0,9.86e-05,2]
[348663564,1736703045572,-622.6,9.86e-05,2]
[348663565,1736703045583,-500.0,9.86e-05,2]
[348663566,1736703045595,-926.15,9.86e-05,2]
[348663567,1736703045606,-594.52,9.86e-05,2]
[348663568,1736703045615,-835.47,9.86e-05,2]
[348663569,1736703045624,-500.0,9.86e-05,2]
[348663570,1736703045634,-984.26,9.86e-05,2]
[348663571,1736703045643,-255.0,9.897e-05,2]
[348663572,1736703045653,-1000.0,9.9e-05,3]
[348663573,1736703045664,-593.0,9.909e-05,2]
[348663574,1736703045674,-1000.0,9.91e-05,2]
[348663575,1736703045683,-759.35358226,9.941e-05,2]
[348663576,1736703045693,-18983.56714127,9.972e-05,2]
[348663577,1736703045702,-500.0,9.973e-05,2]
[348663579,1736703045713,-18983.56714127,9.973e-05,2]
[348663581,1736703045723,-200.0,9.974e-05,2]
[348663583,1736703045733,-18983.56714127,9.979e-05,2]
[348663584,1736703045743,-18983.56714127,9.985e-05,2]
[348663585,1736703045753,-18983.56714127,9.988e-05,2]
[348663586,1736703045763,-11617.0618383,9.988e-05,2]
[348663587,1736703045773,-18983.56714127,9.993e-05,2]
[348663588,1736703045782,-1061.29224118,9.998e-05,3]
[348663589,1736703045794,-1061.29224117,9.998e-05,3]
[348663590,1736703045804,-1061.29224118,9.999e-05,3]
[348663591,1736703045814,-619.93917414,9.999e-05,2]
[348663592,1736703045824,-174.22,0.0001,2]
[348663593,1736703045833,-500.0,0.0001,2]
[348663594,1736703045843,-329.88,0.0001,2]
[348663595,1736703045853,-195523.71056755,0.0001,2]
[348663596,1736703045864,-331.62505289,0.0001,2]
[348663597,1736703045875,-7312.62577763,0.0001,2]
[348663598,1736703045884,-1830.09945797,0.0001,2]
[348663599,1736703045894,-2100.0,0.0001,3]
[348663600,1736703045903,-653.73425882,0.0001,2]
[348663601,1736703045913,-18321367.17918672,0.0001,2]
[348663602,1736703045923,-565815.29215189,0.0001,2]
[348663603,1736703045932,-712.87035651,0.0001,2]
[348663604,1736703045942,-8036.29283313,0.0001,2]
[348663605,1736703045951,-4383.84340592,0.0001,2]
[348663606,1736703045960,-759.35358226,0.0001,2]
[348663607,1736703045969,-759.35358226,0.0001,2]
[348663608,1736703045978,-759.35358226,0.0001,2]
[348663609,1736703045987,-759.35358226,0.0001,2]
[348663610,1736703045997,-759.35358226,0.0001,2]
[348663611,1736703046006,-759.35358226,0.0001,2]
[348663612,1736703046015,-759.35358226,0.0001,2]
[348663613,1736703046024,-759.35358226,0.00010076,2]
[348663614,1736703046033,-500.0,0.00010092,2]
[348663615,1736703046043,-500.0,0.00010092,2]
[348663617,1736703046052,-500.0,0.00010092,2]
[348663618,1736703046061,-500.0,0.00010092,2]
[348663619,1736703046070,-500.0,0.00010092,2]
[348663620,1736703046081,-611.99,0.00010092,2]
[348663621,1736703046091,-669.44,0.00010092,2]
[348663622,1736703046101,-500.0,0.00010092,2]
[348663624,1736703046110,-500.0,0.00010092,2]
[348663626,1736703046119,-3303.27,0.00010092,2]
[348663628,1736703046129,-1466.88,0.00010092,2]
[348663630,1736703046139,-1828.88,0.00010092,2]
[348663632,1736703046147,-500.0,0.00010092,2]
[348663634,1736703046157,-525.02,0.00010092,2]
[348663636,1736703046166,-500.0,0.00010092,2]
[348663638,1736703046175,-500.0,0.00010093,2]
[348663640,1736703046184,-547.77,0.00010093,2]
[348663642,1736703046193,-658.96,0.00010093,2]
[348663644,1736703046202,-597.77,0.00010093,2]
[348663646,1736703046212,-542.67,0.00010093,2]
[348663648,1736703046221,-659.84,0.00010093,2]
[348663650,1736703046230,-508.07,0.00010093,2]
[348663652,1736703046239,-587.81,0.00010093,2]
[348663654,1736703046247,-581.7,0.00010093,2]
[348663656,1736703046256,-500.0,0.00010093,2]
[348663658,1736703046266,-559.72,0.00010093,2]
[348663660,1736703046275,-500.0,0.00010093,2]
[348663662,1736703046284,-500.0,0.00010093,2]
[348663664,1736703046293,-500.0,0.00010093,2]
[348663665,1736703046302,-500.0,0.00010093,2]
[348663666,1736703046311,-500.0,0.00010093,2]
[348663667,1736703046322,-500.0,0.00010093,2]
[348663668,1736703046332,-1023.19,0.00010093,2]
[348663669,1736703046341,-500.0,0.00010093,2]
[348663670,1736703046350,-565.5,0.00010093,2]
[348663671,1736703046358,-619.49,0.00010093,2]
[348663672,1736703046368,-560.57,0.00010093,2]
[348663673,1736703046377,-500.0,0.00010093,2]
[348663674,1736703046386,-500.0,0.00010093,2]
[348663675,1736703046395,-670.32,0.00010093,2]
[348663677,1736703046404,-500.0,0.00010093,2]
[348663679,1736703046413,-500.0,0.00010093,2]
[348663681,1736703046422,-500.0,0.00010093,2]
[348663683,1736703046432,-500.0,0.00010093,2]
[348663685,1736703046441,-552.81,0.00010093,2]
[348663687,1736703046450,-789.57,0.00010093,2]
[348663689,1736703046459,-658.01,0.00010093,2]
[348663691,1736703046468,-737.03,0.00010093,2]
[348663693,1736703046478,-500.0,0.00010093,2]
[348663695,1736703046488,-509.85,0.00010093,2]
[348663697,1736703046497,-786.1,0.00010093,2]
[348663698,1736703046507,-1163.59,0.00010093,2]
[348663700,1736703046516,-500.0,0.00010093,2]
[348663702,1736703046525,-698.98,0.00010093,2]
[348663704,1736703046535,-580.87,0.00010093,2]
[348663706,1736703046544,-894.48,0.00010093,2]
[348663708,1736703046553,-616.73,0.00010093,2]
[348663710,1736703046563,-1827.21,0.00010093,2]
[348663712,1736703046572,-500.0,0.00010093,2]
[348663714,1736703046582,-500.0,0.00010093,2]
[348663716,1736703046591,-584.66,0.00010093,2]
[348663718,1736703046601,-1155.01,0.00010093,2]
[348663720,1736703046611,-500.0,0.00010093,2]
[348663722,1736703046619,-500.0,0.00010093,2]
[348663724,1736703046629,-507.09,0.00010093,2]
[348663726,1736703046638,-551.87,0.00010093,2]
[348663728,1736703046649,-801.41,0.00010093,2]
[348663730,1736703046658,-1372.05,0.00010093,2]
[348663732,1736703046667,-500.0,0.00010093,2]
[348663733,1736703046678,-500.0,0.00010093,2]
[348663734,1736703046687,-4871.73,0.00010093,2]
[348663735,1736703046698,-670.542802,0.00010093,2]
[348663736,1736703046707,-576.13,0.00010093,2]
[348663737,1736703046717,-500.0,0.00010093,2]
[348663738,1736703046726,-521.02,0.00010093,2]
[348663739,1736703046735,-2101.69,0.00010093,2]
[348663740,1736703046747,-711.558222,0.00010093,2]
[348663741,1736703046760,-2908.34,0.00010093,2]
[348663742,1736703046769,-500.0,0.00010093,2]
[348663743,1736703046779,-1015.72,0.00010093,2]
[348663744,1736703046789,-560.68,0.00010093,2]
[348663745,1736703046798,-756.21,0.00010093,2]
[348663746,1736703046807,-500.0,0.00010093,2]
[348663747,1736703046816,-500.0,0.00010093,2]
[348663748,1736703046826,-2379.73,0.00010093,2]
[348663749,1736703046835,-616.86,0.00010093,2]
[348663750,1736703046845,-1373.72,0.00010093,2]
[348663751,1736703046854,-709.55,0.00010093,2]
[348663752,1736703046864,-500.0,0.00010093,2]
[348663753,1736703046875,-2445.35,0.00010093,2]
[348663754,1736703046885,-500.0,0.00010093,2]
[348663755,1736703046894,-621.67,0.00010093,2]
[348663756,1736703046903,-805.59,0.00010093,2]
[348663757,1736703046912,-836.31,0.00010093,2]
[348663758,1736703046922,-640.04,0.00010093,2]
[348663759,1736703046931,-1631.81,0.00010093,2]
[348663760,1736703046941,-500.0,0.00010093,2]
[348663761,1736703046950,-500.0,0.00010093,2]
[348663762,1736703046959,-613.67,0.00010093,2]
[348663763,1736703046968,-616.5,0.00010093,2]
[348663764,1736703046978,-1953.19,0.00010093,2]
[348663765,1736703046986,-654.56,0.00010093,2]
[348663766,1736703046996,-1399.66,0.00010093,2]
[348663767,1736703047005,-234.11917836,0.00010093,2]
[348663768,1736703047015,-500.0,0.00010093,2]
[348663769,1736703047024,-1365.16,0.00010093,2]
[348663770,1736703047033,-749.54,0.00010093,2]
[348663771,1736703047042,-1180.65,0.00010093,2]
[348663772,1736703047052,-500.0,0.00010093,2]
[348663773,1736703047061,-1106.75,0.00010093,2]
[348663774,1736703047070,-837.94,0.00010093,2]
[348663775,1736703047079,-500.0,0.00010093,2]
[348663776,1736703047089,-926.8,0.00010093,2]
[348663777,1736703047098,-2029.55,0.00010093,2]
[348663778,1736703047107,-547.49,0.00010093,2]
[348663779,1736703047117,-1448.07,0.00010093,2]
[348663780,1736703047126,-500.0,0.00010093,2]
[348663781,1736703047135,-748.44,0.00010093,2]
[348663782,1736703047144,-807.57,0.00010093,2]
[348663783,1736703047153,-677.77,0.00010093,2]
[348663784,1736703047162,-1113.6,0.00010093,2]
[348663785,1736703047171,-153.02837449,0.00010093,2]
[348663786,1736703047181,-669.65,0.00010093,2]
[348663787,1736703047190,-500.0,0.00010093,2]
[348663788,1736703047200,-620.16,0.00010093,2]
[348663789,1736703047209,-1008.51,0.00010093,2]
[348663790,1736703047218,-500.0,0.00010093,2]
[348663791,1736703047228,-500.0,0.00010093,2]
[348663792,1736703047237,-1807.92,0.00010093,2]
[348663793,1736703047246,-791.56,0.00010093,2]
[348663794,1736703047255,-520.56,0.00010093,2]
[348663795,1736703047264,-3328.33,0.00010093,2]
[348663796,1736703047273,-838.74,0.00010093,2]
[348663797,1736703047282,-2200.99,0.00010094,2]
[348663798,1736703047291,-909.39,0.00010094,2]
[348663799,1736703047300,-2362.14,0.00010094,2]
[348663800,1736703047309,-2863.97,0.00010094,2]
[348663801,1736703047318,-500.0,0.00010094,2]
[348663802,1736703047331,-1514.12,0.00010094,2]
[348663803,1736703047340,-2538.07,0.00010094,2]
[348663804,1736703047349,-694.06,0.00010094,2]
[348663805,1736703047358,-1286.97,0.00010094,2]
[348663806,1736703047368,-512.71,0.00010094,2]
[348663807,1736703047378,-1140.14,0.00010094,2]
[348663808,1736703047387,-1065.07,0.00010094,2]
[348663809,1736703047396,-727.92,0.00010094,2]
[348663810,1736703047406,-931.68,0.00010094,2]
[348663811,1736703047415,-1180.88,0.00010094,2]
[348663812,1736703047424,-1157.34,0.00010094,2]
[348663813,1736703047433,-1199.82,0.00010094,2]
[348663814,1736703047442,-840.95,0.00010094,2]
[348663815,1736703047451,-855.57,0.00010094,2]
[348663816,1736703047461,-1855.45,0.00010094,2]
[348663817,1736703047470,-1239.35,0.00010094,2]
[348663818,1736703047479,-879.97,0.00010094,2]
[348663819,1736703047489,-1510.22,0.00010094,2]
[348663820,1736703047498,-1411.8,0.00010094,2]
[348663821,1736703047507,-2123.72,0.00010094,2]
[348663822,1736703047516,-1358.58,0.00010094,2]
[348663823,1736703047525,-500.0,0.00010094,2]
[348663824,1736703047538,-2079.2,0.00010094,2]
[348663825,1736703047547,-2636.99,0.00010094,2]
[348663826,1736703047556,-1021.95,0.00010094,2]
[348663827,1736703047566,-4247.6,0.00010094,2]
[348663828,1736703047575,-1316.2,0.00010094,2]
[348663829,1736703047584,-995.58,0.00010094,2]
[348663830,1736703047593,-5872.12,0.00010094,2]
[348663831,1736703047602,-500.0,0.00010094,2]
[348663832,1736703047611,-1593.67,0.00010094,2]
[348663833,1736703047620,-1433.03,0.00010094,2]
[348663834,1736703047629,-1000.0,0.00010094,2]
[348663835,1736703047639,-3088.86,0.00010095,2]
[348663836,1736703047648,-9662.56818269,0.00010115,4]
[348663837,1736703047657,-500.0,0.00010134,2]
[348663838,1736703047667,-500.0,0.00010134,2]
[348663839,1736703047675,-500.0,0.00010134,2]
[348663840,1736703047685,-500.0,0.00010134,2]
[348663841,1736703047694,-570.15,0.00010134,2]
[348663842,1736703047703,-500.0,0.00010134,2]
[348663843,1736703047712,-653.93,0.00010134,2]
[348663844,1736703047722,-500.0,0.00010134,2]
[348663845,1736703047731,-500.0,0.00010134,2]
[348663846,1736703047741,-500.0,0.00010134,2]
[348663847,1736703047750,-516.42,0.00010134,2]
[348663848,1736703047760,-500.0,0.00010134,2]
[348663849,1736703047769,-510.27,0.00010134,2]
[348663850,1736703047778,-500.0,0.00010134,2]
[348663851,1736703047787,-500.0,0.00010134,2]
[348663852,1736703047798,-518.86,0.00010134,2]
[348663853,1736703047808,-500.0,0.00010134,2]
[348663854,1736703047817,-560.90014906,0.00010134,2]
[348663855,1736703047826,-564.98,0.00010134,2]
[348663856,1736703047836,-500.0,0.00010134,2]
[348663857,1736703047845,-500.0,0.00010134,2]
[348663858,1736703047854,-500.0,0.00010134,2]
[348663859,1736703047863,-500.0,0.00010134,2]
[348663860,1736703047872,-550.16,0.00010134,2]
[348663861,1736703047882,-662.99,0.00010134,2]
[348663862,1736703047892,-500.0,0.00010134,2]
[348663863,1736703047901,-500.0,0.00010134,2]
[348663864,1736703047911,-500.0,0.00010134,2]
[348663865,1736703047920,-500.0,0.00010134,2]
[348663866,1736703047930,-773.0,0.00010134,2]
[348663867,1736703047939,-618.82,0.00010134,2]
[348663868,1736703047948,-1018.4,0.00010134,2]
[348663869,1736703047957,-500.0,0.00010134,2]
[348663870,1736703047967,-500.0,0.00010134,2]
[348663871,1736703047976,-352.71473516,0.00010134,2]
[348663872,1736703047985,-500.0,0.00010134,2]
[348663873,1736703047994,-520.44,0.00010134,2]
[348663874,1736703048003,-551.87,0.00010134,2]
[348663875,1736703048013,-500.0,0.00010134,2]
[348663876,1736703048022,-500.0,0.00010134,2]
[348663877,1736703048032,-500.0,0.00010134,2]
[348663878,1736703048041,-621.66,0.00010134,2]
[348663879,1736703048050,-500.0,0.00010134,2]
[348663880,1736703048060,-500.0,0.00010134,2]
[348663881,1736703048069,-741.52,0.00010134,2]
[348663882,1736703048079,-715.09,0.00010134,2]
[348663883,1736703048089,-695.27,0.00010134,2]
[348663884,1736703048099,-610.33,0.00010134,2]
[348663885,1736703048108,-503.36,0.00010134,2]
[348663886,1736703048117,-700.77,0.00010134,2]
[348663887,1736703048127,-500.0,0.00010134,2]
[348663888,1736703048137,-500.0,0.00010134,2]
[348663889,1736703048146,-622.6,0.00010134,2]
[348663890,1736703048156,-500.0,0.00010134,2]
[348663891,1736703048165,-926.15,0.00010134,2]
[348663892,1736703048175,-594.52,0.00010134,2]
[348663893,1736703048185,-835.47,0.00010134,2]
[348663894,1736703048194,-419.94088966,0.00010134,2]
[348663895,1736703048205,-984.26,0.00010134,2]
[348663896,1736703048215,-388.11,0.00010137,2]
[348663897,1736703048224,-261.4084419,0.00010178,2]
[348663898,1736703048234,-759.35358226,0.0001021,2]
[348663899,1736703048243,-343.0,0.00010292,2]
[348663900,1736703048253,-759.35358226,0.00010345,2]
[348663901,1736703048263,-500.0,0.00010366,2]
[348663902,1736703048273,-500.0,0.00010366,2]
[348663903,1736703048283,-500.0,0.00010366,2]
[348663904,1736703048293,-500.0,0.00010366,2]
[348663905,1736703048303,-500.0,0.00010366,2]
[348663906,1736703048312,-611.99,0.00010366,2]
[348663907,1736703048323,-669.44,0.00010366,2]
[348663908,1736703048335,-500.0,0.00010366,2]
[348663909,1736703048344,-500.0,0.00010366,2]
[348663910,1736703048354,-3303.27,0.00010366,2]
[348663911,1736703048364,-1466.88,0.00010366,2]
[348663912,1736703048374,-1828.88,0.00010366,2]
[348663913,1736703048384,-500.0,0.00010366,2]
[348663914,1736703048394,-525.02,0.00010366,2]
[348663915,1736703048403,-367.93843099,0.00010366,2]
[348663916,1736703048414,-500.0,0.00010367,2]
[348663917,1736703048424,-547.77,0.00010367,2]
[348663918,1736703048433,-658.96,0.00010367,2]
[348663919,1736703048443,-597.77,0.00010367,2]
[348663920,1736703048452,-542.67,0.00010367,2]
[348663921,1736703048462,-659.84,0.00010367,2]
[348663922,1736703048471,-508.07,0.00010367,2]
[348663923,1736703048481,-587.81,0.00010367,2]
[348663924,1736703048491,-581.7,0.00010367,2]
[348663925,1736703048501,-500.0,0.00010367,2]
[348663926,1736703048512,-559.72,0.00010367,2]
[348663927,1736703048524,-500.0,0.00010367,2]
[348663928,1736703048536,-500.0,0.00010367,2]
[348663929,1736703048548,-500.0,0.00010367,2]
[348663930,1736703048557,-500.0,0.00010367,2]
[348663931,1736703048567,-500.0,0.00010367,2]
[348663932,1736703048577,-500.0,0.00010367,2]
[348663933,1736703048587,-1023.19,0.00010367,2]
[348663934,1736703048596,-500.0,0.00010367,2]
[348663935,1736703048606,-565.5,0.00010367,2]
[348663936,1736703048615,-619.49,0.00010367,2]
[348663937,1736703048625,-560.57,0.00010367,2]
[348663938,1736703048636,-500.0,0.00010367,2]
[348663939,1736703048645,-500.0,0.00010367,2]
[348663940,1736703048655,-670.32,0.00010367,2]
[348663941,1736703048664,-500.0,0.00010367,2]
[348663942,1736703048674,-500.0,0.00010367,2]
[348663943,1736703048683,-500.0,0.00010367,2]
[348663944,1736703048693,-500.0,0.00010367,2]
[348663945,1736703048704,-552.81,0.00010367,2]
[348663946,1736703048713,-789.57,0.00010367,2]
[348663947,1736703048723,-658.01,0.00010367,2]
[348663948,1736703048734,-737.03,0.00010367,2]
[348663949,1736703048744,-500.0,0.00010367,2]
[348663950,1736703048755,-509.85,0.00010367,2]
[348663951,1736703048765,-786.1,0.00010367,2]
[348663952,1736703048775,-1163.59,0.00010367,2]
[348663953,1736703048785,-500.0,0.00010367,2]
[348663954,1736703048795,-698.98,0.00010367,2]
[348663955,1736703048804,-580.87,0.00010367,2]
[348663956,1736703048814,-894.48,0.00010367,2]
[348663957,1736703048823,-616.73,0.00010367,2]
[348663958,1736703048833,-1827.21,0.00010367,2]
[348663959,1736703048843,-500.0,0.00010367,2]
[348663960,1736703048852,-500.0,0.00010367,2]
[348663961,1736703048862,-584.66,0.00010367,2]
[348663962,1736703048873,-1155.01,0.00010367,2]
[348663963,1736703048884,-500.0,0.00010367,2]
[348663964,1736703048893,-500.0,0.00010367,2]
[348663965,1736703048903,-507.09,0.00010367,2]
[348663966,1736703048914,-551.87,0.00010367,2]
[348663967,1736703048924,-801.41,0.00010367,2]
[348663968,1736703048934,-1372.05,0.00010367,2]
[348663969,1736703048944,-500.0,0.00010367,2]
[348663970,1736703048954,-500.0,0.00010367,2]
[348663971,1736703048964,-4871.73,0.00010367,2]
[348663972,1736703048974,-670.542802,0.00010367,2]
[348663973,1736703048983,-576.13,0.00010367,2]
[348663974,1736703048994,-500.0,0.00010367,2]
[348663975,1736703049003,-521.02,0.00010367,2]
[348663976,1736703049014,-2101.69,0.00010367,2]
[348663977,1736703049023,-711.558222,0.00010367,2]
[348663978,1736703049033,-2908.34,0.00010367,2]
[348663979,1736703049043,-500.0,0.00010367,2]
[348663980,1736703049053,-1015.72,0.00010367,2]
[348663981,1736703049065,-560.68,0.00010367,2]
[348663982,1736703049075,-756.21,0.00010367,2]
[348663983,1736703049086,-500.0,0.00010367,2]
[348663984,1736703049097,-500.0,0.00010367,2]
[348663985,1736703049107,-2379.73,0.00010367,2]
[348663986,1736703049118,-616.86,0.00010367,2]
[348663987,1736703049128,-1373.72,0.00010367,2]
[348663988,1736703049138,-709.55,0.00010367,2]
[348663989,1736703049149,-500.0,0.00010367,2]
[348663990,1736703049159,-2445.35,0.00010367,2]
[348663991,1736703049168,-500.0,0.00010367,2]
[348663992,1736703049178,-621.67,0.00010367,2]
[348663993,1736703049188,-805.59,0.00010367,2]
[348663994,1736703049197,-836.31,0.00010367,2]
[348663995,1736703049207,-1631.81,0.00010367,2]
[348663996,1736703049217,-640.04,0.00010367,2]
[348663997,1736703049227,-500.0,0.00010367,2]
[348663998,1736703049237,-500.0,0.00010367,2]
[348663999,1736703049247,-613.67,0.00010367,2]
[348664000,1736703049257,-616.5,0.00010367,2]
[348664001,1736703049267,-1953.19,0.00010367,2]
[348664002,1736703049277,-654.56,0.00010367,2]
[348664003,1736703049287,-1399.66,0.00010367,2]
[348664004,1736703049296,-500.0,0.00010367,2]
[348664005,1736703049306,-1365.16,0.00010367,2]
[348664006,1736703049317,-749.54,0.00010367,2]
[348664007,1736703049327,-1180.65,0.00010367,2]
[348664008,1736703049337,-500.0,0.00010367,2]
[348664009,1736703049347,-1106.75,0.00010367,2]
[348664010,1736703049359,-837.94,0.00010367,2]
[348664011,1736703049369,-500.0,0.00010367,2]
[348664012,1736703049379,-926.8,0.00010367,2]
[348664013,1736703049389,-2029.55,0.00010367,2]
[348664014,1736703049400,-547.49,0.00010367,2]
[348664015,1736703049410,-1448.07,0.00010367,2]
[348664016,1736703049420,-500.0,0.00010367,2]
[348664017,1736703049431,-748.44,0.00010367,2]
[348664018,1736703049441,-807.57,0.00010367,2]
[348664019,1736703049451,-677.77,0.00010367,2]
[348664020,1736703049461,-1113.6,0.00010367,2]
[348664021,1736703049470,-669.65,0.00010367,2]
[348664022,1736703049480,-500.0,0.00010367,2]
[348664023,1736703049490,-620.16,0.00010367,2]
[348664024,1736703049500,-1008.51,0.00010367,2]
[348664025,1736703049511,-500.0,0.00010367,2]
[348664026,1736703049522,-525.3174462,0.00010367,2]
[348664027,1736703049532,-1807.92,0.00010367,2]
[348664028,1736703049542,-791.56,0.00010367,2]
[348664029,1736703049552,-520.56,0.00010367,2]
[348664030,1736703049562,-3328.33,0.00010367,2]
[348664031,1736703049571,-838.74,0.00010367,2]
[348664032,1736703049581,-2200.99,0.00010368,2]
[348664033,1736703049591,-909.39,0.00010368,2]
[348664034,1736703049602,-2362.14,0.00010368,2]
[348664035,1736703049612,-2863.97,0.00010368,2]
[348664036,1736703049623,-1514.12,0.00010368,2]
[348664037,1736703049632,-2538.07,0.00010368,2]
[348664038,1736703049642,-694.06,0.00010368,2]
[348664039,1736703049652,-1286.97,0.00010368,2]
[348664040,1736703049662,-512.71,0.00010368,2]
[348664041,1736703049671,-1140.14,0.00010368,2]
[348664042,1736703049681,-1065.07,0.00010368,2]
[348664043,1736703049691,-727.92,0.00010368,2]
[348664044,1736703049701,-931.68,0.00010368,2]
[348664045,1736703049712,-1180.88,0.00010368,2]
[348664046,1736703049722,-1157.34,0.00010368,2]
[348664047,1736703049732,-1199.82,0.00010368,2]
[348664048,1736703049742,-840.95,0.00010368,2]
[348664049,1736703049752,-855.57,0.00010368,2]
[348664050,1736703049762,-1855.45,0.00010368,2]
[348664051,1736703049772,-1239.35,0.00010368,2]
[348664052,1736703049782,-879.97,0.00010368,2]
[348664053,1736703049792,-1510.22,0.00010368,2]
[348664054,1736703049802,-1411.8,0.00010368,2]
[348664055,1736703049811,-2123.72,0.00010368,2]
[348664056,1736703049821,-1358.58,0.00010368,2]
[348664057,1736703049832,-500.0,0.00010368,2]
[348664058,1736703049842,-2079.2,0.00010368,2]
[348664059,1736703049852,-2636.99,0.00010368,2]
[348664060,1736703049862,-1021.95,0.00010368,2]
[348664061,1736703049872,-4247.6,0.00010368,2]
[348664062,1736703049882,-1316.2,0.00010368,2]
[348664063,1736703049892,-995.58,0.00010368,2]
[348664064,1736703049902,-5872.12,0.00010368,2]
[348664065,1736703049911,-500.0,0.00010368,2]
[348664066,1736703049921,-1593.67,0.00010368,2]
[348664067,1736703049931,-1433.03,0.00010368,2]
[348664068,1736703049941,-1000.0,0.00010368,2]
[348664069,1736703049951,-3088.86,0.00010369,2]
[348664070,1736703049961,-500.0,0.00010408,2]
[348664071,1736703049971,-500.0,0.00010408,2]
[348664072,1736703049980,-500.0,0.00010408,2]
[348664073,1736703049990,-500.0,0.00010408,2]
[348664074,1736703050000,-570.15,0.00010408,2]
[348664075,1736703050009,-500.0,0.00010408,2]
[348664076,1736703050019,-653.93,0.00010408,2]
[348664077,1736703050029,-500.0,0.00010408,2]
[348664078,1736703050038,-500.0,0.00010408,2]